[Event "Titled Tuesday Blitz July 4 Early 2023"]
[White "Cabarkapa, Novak"]
[Black "Korobov, Anton"]
[WhiteFideId "943746"]
[BlackFideId "14105730"]
[WhiteElo "2783"]
[BlackElo "2982"]
[Result "0-1"]
[Round "4"]
[TimeControl "180+2"]
[Date "2023.07.04"]
[WhiteClock "0:00:34"]
[BlackClock "0:00:55"]
[Board "12"]

1. d4 {[%clk 0:03:00]}  Nf6 {[%clk 0:02:59]} 2. Nc3 {[%clk 0:03:01]}  d5 {[%clk 0:02:59]} 3. Bf4 {[%clk 0:03:01]}  a6 {[%clk 0:02:56]} 4. e3 {[%clk 0:03:01]}  Bf5 {[%clk 0:02:56]} 5. Nf3 {[%clk 0:03:01]}  e6 {[%clk 0:02:57]} 6. Ne5 {[%clk 0:03:01]}  h5 {[%clk 0:02:50]} 7. Bd3 {[%clk 0:03:00]}  Bd6 {[%clk 0:02:44]} 8. Bxf5 {[%clk 0:02:54]}  exf5 {[%clk 0:02:44]} 9. Qd3 {[%clk 0:02:53]}  g6 {[%clk 0:02:36]} 10. Bg5 {[%clk 0:02:50]}  Be7 {[%clk 0:02:36]} 11. O-O-O {[%clk 0:02:46]}  Nc6 {[%clk 0:02:27]} 12. f3 {[%clk 0:02:40]}  Qd6 {[%clk 0:02:12]} 13. Bf4 {[%clk 0:02:32]}  Qe6 {[%clk 0:02:12]} 14. Kb1 {[%clk 0:02:30]}  O-O-O {[%clk 0:02:11]} 15. Rhe1 {[%clk 0:02:24]}  h4 {[%clk 0:02:04]} 16. h3 {[%clk 0:02:23]}  Nh5 {[%clk 0:02:04]} 17. Nxc6 {[%clk 0:02:19]}  Qxc6 {[%clk 0:02:03]} 18. Be5 {[%clk 0:02:19]}  f6 {[%clk 0:01:59]} 19. Bh2 {[%clk 0:02:18]}  Bb4 {[%clk 0:01:53]} 20. e4 {[%clk 0:02:07]}  dxe4 {[%clk 0:01:47]} 21. fxe4 {[%clk 0:02:07]}  Bxc3 {[%clk 0:01:48]} 22. Qxc3 {[%clk 0:02:04]}  Qxc3 {[%clk 0:01:47]} 23. bxc3 {[%clk 0:02:05]}  f4 {[%clk 0:01:46]} 24. e5 {[%clk 0:02:00]}  g5 {[%clk 0:01:43]} 25. d5 {[%clk 0:01:48]}  fxe5 {[%clk 0:01:30]} 26. Rxe5 {[%clk 0:01:49]}  Rhg8 {[%clk 0:01:30]} 27. c4 {[%clk 0:01:48]}  Ng3 {[%clk 0:01:21]} 28. c5 {[%clk 0:01:38]}  Rde8 {[%clk 0:01:10]} 29. Rde1 {[%clk 0:01:36]}  Kd8 {[%clk 0:01:09]} 30. Bxg3 {[%clk 0:01:33]}  hxg3 {[%clk 0:01:09]} 31. Kc1 {[%clk 0:01:16]}  Rxe5 {[%clk 0:00:57]} 32. Rxe5 {[%clk 0:01:17]}  f3 {[%clk 0:00:57]} 33. gxf3 {[%clk 0:01:13]}  g4 {[%clk 0:00:57]} 34. hxg4 {[%clk 0:00:34]}  Re8 {[%clk 0:00:55]} 0-1


[Site "https://www.chess.com"]

[Event "Titled Tuesday Blitz July 4 Early 2023"]
[White "Indjic, Aleksandar"]
[Black "Fier, Alexandr"]
[WhiteFideId "911925"]
[BlackFideId "2107139"]
[WhiteElo "2977"]
[BlackElo "2782"]
[Result "1-0"]
[Round "4"]
[TimeControl "180+2"]
[Date "2023.07.04"]
[WhiteClock "0:00:52"]
[BlackClock "0:00:37"]
[Board "13"]

1. d4 {[%clk 0:03:00]}  Nf6 {[%clk 0:02:58]} 2. c4 {[%clk 0:03:01]}  c5 {[%clk 0:02:59]} 3. d5 {[%clk 0:03:00]}  e6 {[%clk 0:02:59]} 4. Nc3 {[%clk 0:03:00]}  exd5 {[%clk 0:02:59]} 5. cxd5 {[%clk 0:03:00]}  d6 {[%clk 0:03:00]} 6. Nf3 {[%clk 0:02:59]}  g6 {[%clk 0:03:01]} 7. e4 {[%clk 0:02:55]}  a6 {[%clk 0:03:01]} 8. Bf4 {[%clk 0:02:54]}  Bg4 {[%clk 0:02:57]} 9. Qa4+ {[%clk 0:02:51]}  Nbd7 {[%clk 0:02:53]} 10. Nd2 {[%clk 0:02:45]}  b5 {[%clk 0:02:53]} 11. Qc2 {[%clk 0:02:45]}  Nb6 {[%clk 0:02:49]} 12. h3 {[%clk 0:02:44]}  Bc8 {[%clk 0:02:49]} 13. a4 {[%clk 0:02:43]}  b4 {[%clk 0:02:49]} 14. Nd1 {[%clk 0:02:43]}  a5 {[%clk 0:02:43]} 15. Bb5+ {[%clk 0:02:41]}  Bd7 {[%clk 0:02:43]} 16. Bxd7+ {[%clk 0:02:41]}  Nfxd7 {[%clk 0:02:40]} 17. Ne3 {[%clk 0:02:39]}  Qe7 {[%clk 0:02:40]} 18. Ndc4 {[%clk 0:02:34]}  Qf6 {[%clk 0:02:35]} 19. Bh2 {[%clk 0:02:30]}  Be7 {[%clk 0:02:31]} 20. O-O {[%clk 0:02:28]}  O-O {[%clk 0:02:31]} 21. f4 {[%clk 0:02:28]}  Qg7 {[%clk 0:02:22]} 22. e5 {[%clk 0:02:27]}  Rfe8 {[%clk 0:02:17]} 23. Qd3 {[%clk 0:02:12]}  Bf8 {[%clk 0:02:12]} 24. Kh1 {[%clk 0:02:08]}  f5 {[%clk 0:02:02]} 25. g4 {[%clk 0:01:57]}  Nxc4 {[%clk 0:01:59]} 26. Nxc4 {[%clk 0:01:56]}  dxe5 {[%clk 0:01:52]} 27. fxe5 {[%clk 0:01:54]}  Nxe5 {[%clk 0:01:41]} 28. Bxe5 {[%clk 0:01:52]}  Rxe5 {[%clk 0:01:42]} 29. Nxe5 {[%clk 0:01:49]}  Qxe5 {[%clk 0:01:42]} 30. gxf5 {[%clk 0:01:49]}  Bd6 {[%clk 0:01:40]} 31. Rf2 {[%clk 0:01:42]}  Rf8 {[%clk 0:01:25]} 32. Re2 {[%clk 0:01:19]}  Qxf5 {[%clk 0:01:10]} 33. Qxf5 {[%clk 0:01:18]}  Rxf5 {[%clk 0:01:11]} 34. Rd1 {[%clk 0:01:17]}  Kf7 {[%clk 0:00:58]} 35. Kg2 {[%clk 0:01:17]}  c4 {[%clk 0:00:58]} 36. Rf1 {[%clk 0:01:15]}  Rxf1 {[%clk 0:00:52]} 37. Kxf1 {[%clk 0:01:14]}  b3 {[%clk 0:00:52]} 38. Ke1 {[%clk 0:01:10]}  Bf4 {[%clk 0:00:45]} 39. Kd1 {[%clk 0:01:09]}  Kf6 {[%clk 0:00:44]} 40. Re4 {[%clk 0:01:07]}  Be5 {[%clk 0:00:45]} 41. Kc1 {[%clk 0:01:02]}  c3 {[%clk 0:00:44]} 42. bxc3 {[%clk 0:01:03]}  Bxc3 {[%clk 0:00:44]} 43. d6 {[%clk 0:01:03]}  Bb4 {[%clk 0:00:43]} 44. d7 {[%clk 0:01:01]}  Be7 {[%clk 0:00:43]} 45. Kb2 {[%clk 0:01:00]}  h5 {[%clk 0:00:42]} 46. Kxb3 {[%clk 0:00:59]}  g5 {[%clk 0:00:43]} 47. Kc4 {[%clk 0:00:59]}  g4 {[%clk 0:00:43]} 48. hxg4 {[%clk 0:00:59]}  hxg4 {[%clk 0:00:37]} 49. Kd5 {[%clk 0:00:52]} 1-0


[Site "https://www.chess.com"]

[Event "Titled Tuesday Blitz July 4 Early 2023"]
[White "Palczert, Matyas"]
[Black "Durarbayli, Vasif"]
[WhiteFideId "784958"]
[BlackFideId "13402935"]
[WhiteElo "2598"]
[BlackElo "2919"]
[Result "0-1"]
[Round "4"]
[TimeControl "180+2"]
[Date "2023.07.04"]
[WhiteClock "0:00:00"]
[BlackClock "0:00:05"]
[Board "18"]

1. e4 {[%clk 0:03:00]}  c5 {[%clk 0:02:59]} 2. Nf3 {[%clk 0:03:00]}  d6 {[%clk 0:02:59]} 3. d4 {[%clk 0:02:59]}  cxd4 {[%clk 0:03:00]} 4. Nxd4 {[%clk 0:02:59]}  Nf6 {[%clk 0:03:01]} 5. Nc3 {[%clk 0:02:59]}  Nc6 {[%clk 0:03:01]} 6. Bg5 {[%clk 0:02:59]}  Qb6 {[%clk 0:03:01]} 7. Nb3 {[%clk 0:02:53]}  e6 {[%clk 0:03:00]} 8. Bxf6 {[%clk 0:02:51]}  gxf6 {[%clk 0:03:00]} 9. Qd2 {[%clk 0:02:47]}  a6 {[%clk 0:02:54]} 10. O-O-O {[%clk 0:02:46]}  h5 {[%clk 0:02:54]} 11. Kb1 {[%clk 0:02:45]}  Bd7 {[%clk 0:02:50]} 12. f4 {[%clk 0:02:43]}  O-O-O {[%clk 0:02:49]} 13. Bd3 {[%clk 0:02:29]}  Kb8 {[%clk 0:02:31]} 14. Rhf1 {[%clk 0:02:28]}  Na5 {[%clk 0:02:23]} 15. f5 {[%clk 0:02:13]}  Bh6 {[%clk 0:02:06]} 16. Qe2 {[%clk 0:01:59]}  Bg5 {[%clk 0:01:59]} 17. Nd2 {[%clk 0:01:54]}  Rc8 {[%clk 0:01:47]} 18. Nc4 {[%clk 0:01:41]}  Nxc4 {[%clk 0:01:24]} 19. Bxc4 {[%clk 0:01:40]}  h4 {[%clk 0:01:12]} 20. Bb3 {[%clk 0:01:39]}  Rhd8 {[%clk 0:00:55]} 21. fxe6 {[%clk 0:01:31]}  fxe6 {[%clk 0:00:54]} 22. Qd3 {[%clk 0:01:20]}  Rc6 {[%clk 0:00:49]} 23. Qh3 {[%clk 0:01:13]}  Bc8 {[%clk 0:00:43]} 24. Rd3 {[%clk 0:00:58]}  d5 {[%clk 0:00:20]} 25. exd5 {[%clk 0:00:48]}  exd5 {[%clk 0:00:21]} 26. Qf3 {[%clk 0:00:47]}  d4 {[%clk 0:00:22]} 27. Nd5 {[%clk 0:00:46]}  Qc5 {[%clk 0:00:20]} 28. Rfd1 {[%clk 0:00:39]}  Rcd6 {[%clk 0:00:20]} 29. Rxd4 {[%clk 0:00:38]}  Be6 {[%clk 0:00:17]} 30. c3 {[%clk 0:00:34]}  a5 {[%clk 0:00:08]} 31. Nf4 {[%clk 0:00:24]}  Bxb3 {[%clk 0:00:06]} 32. axb3 {[%clk 0:00:18]}  Qf5+ {[%clk 0:00:06]} 33. Nd3 {[%clk 0:00:09]}  Qxf3 {[%clk 0:00:07]} 34. gxf3 {[%clk 0:00:09]}  Rxd4 {[%clk 0:00:08]} 35. cxd4 {[%clk 0:00:09]}  Rxd4 {[%clk 0:00:09]} 36. Kc2 {[%clk 0:00:10]}  h3 {[%clk 0:00:07]} 37. Nf2 {[%clk 0:00:10]}  Rh4 {[%clk 0:00:07]} 38. Rg1 {[%clk 0:00:07]}  Be3 {[%clk 0:00:04]} 39. Rg4 {[%clk 0:00:07]}  Bxf2 {[%clk 0:00:05]} 40. Rg8+ {[%clk 0:00:05]}  Ka7 {[%clk 0:00:04]} 41. Kd3 {[%clk 0:00:04]}  Bd4 {[%clk 0:00:04]} 42. b4 {[%clk 0:00:03]}  axb4 {[%clk 0:00:04]} 43. b3 {[%clk 0:00:03]}  Be5 {[%clk 0:00:04]} 44. Rg1 {[%clk 0:00:00]}  Bxh2 {[%clk 0:00:05]} 0-1


[Site "https://www.chess.com"]

[Event "Titled Tuesday Blitz July 4 Early 2023"]
[White "Leebit02"]
[Black "Aravindh, Chithambaram VR."]
[BlackFideId "5072786"]
[WhiteElo "2522"]
[BlackElo "2914"]
[Result "1-0"]
[Round "4"]
[TimeControl "180+2"]
[Date "2023.07.04"]
[WhiteClock "0:00:07"]
[BlackClock "0:00:00"]
[Board "21"]

1. e4 {[%clk 0:02:55]}  c6 {[%clk 0:02:58]} 2. d4 {[%clk 0:02:54]}  d5 {[%clk 0:02:58]} 3. Nc3 {[%clk 0:02:54]}  dxe4 {[%clk 0:02:58]} 4. Nxe4 {[%clk 0:02:54]}  Nf6 {[%clk 0:02:59]} 5. Nxf6+ {[%clk 0:02:54]}  exf6 {[%clk 0:03:00]} 6. c3 {[%clk 0:02:54]}  Bd6 {[%clk 0:02:59]} 7. Bd3 {[%clk 0:02:54]}  O-O {[%clk 0:02:59]} 8. Qc2 {[%clk 0:02:54]}  Re8+ {[%clk 0:02:58]} 9. Ne2 {[%clk 0:02:54]}  h5 {[%clk 0:02:57]} 10. O-O {[%clk 0:02:54]}  Nd7 {[%clk 0:02:55]} 11. Nf4 {[%clk 0:02:47]}  h4 {[%clk 0:02:54]} 12. Qd1 {[%clk 0:02:47]}  Qc7 {[%clk 0:02:30]} 13. g3 {[%clk 0:02:45]}  Nf8 {[%clk 0:02:19]} 14. Qh5 {[%clk 0:02:45]}  hxg3 {[%clk 0:02:13]} 15. hxg3 {[%clk 0:02:40]}  c5 {[%clk 0:02:06]} 16. Kg2 {[%clk 0:02:17]}  Bxf4 {[%clk 0:01:09]} 17. Rh1 {[%clk 0:01:26]}  Ng6 {[%clk 0:01:05]} 18. Bxf4 {[%clk 0:01:21]}  Qd7 {[%clk 0:00:41]} 19. dxc5 {[%clk 0:00:47]}  Nxf4+ {[%clk 0:00:18]} 20. gxf4 {[%clk 0:00:47]}  Qg4+ {[%clk 0:00:17]} 21. Qxg4 {[%clk 0:00:47]}  Bxg4 {[%clk 0:00:18]} 22. Rhe1 {[%clk 0:00:43]}  Red8 {[%clk 0:00:13]} 23. Be4 {[%clk 0:00:42]}  Rac8 {[%clk 0:00:11]} 24. b4 {[%clk 0:00:41]}  b6 {[%clk 0:00:09]} 25. f3 {[%clk 0:00:28]}  Bd7 {[%clk 0:00:08]} 26. cxb6 {[%clk 0:00:20]}  axb6 {[%clk 0:00:09]} 27. Rac1 {[%clk 0:00:17]}  Be6 {[%clk 0:00:09]} 28. Rc2 {[%clk 0:00:16]}  f5 {[%clk 0:00:08]} 29. Bb7 {[%clk 0:00:15]}  Rc7 {[%clk 0:00:08]} 30. Ba6 {[%clk 0:00:15]}  Ra8 {[%clk 0:00:08]} 31. Bb5 {[%clk 0:00:13]}  Rxa2 {[%clk 0:00:04]} 32. Rxa2 {[%clk 0:00:13]}  Bxa2 {[%clk 0:00:04]} 33. c4 {[%clk 0:00:13]}  g6 {[%clk 0:00:02]} 34. Rc1 {[%clk 0:00:13]}  Kg7 {[%clk 0:00:01]} 35. Rc3 {[%clk 0:00:11]}  Bb1 {[%clk 0:00:01]} 36. Kf2 {[%clk 0:00:11]}  Kf6 {[%clk 0:00:00]} 37. Ke3 {[%clk 0:00:07]} 1-0


[Site "https://www.chess.com"]

[Event "Titled Tuesday Blitz July 4 Early 2023"]
[White "Talibov, Shiroghlan"]
[Black "Deac, Bogdan-Daniel"]
[WhiteFideId "13429078"]
[BlackFideId "1226380"]
[WhiteElo "2800"]
[BlackElo "3007"]
[Result "0-1"]
[Round "4"]
[TimeControl "180+2"]
[Date "2023.07.04"]
[WhiteClock "0:00:00"]
[BlackClock "0:00:04"]
[Board "24"]

1. e4 {[%clk 0:03:00]}  Nf6 {[%clk 0:02:56]} 2. Nc3 {[%clk 0:02:56]}  d5 {[%clk 0:02:56]} 3. e5 {[%clk 0:02:55]}  Nfd7 {[%clk 0:02:56]} 4. d4 {[%clk 0:02:55]}  Nb6 {[%clk 0:02:55]} 5. f4 {[%clk 0:02:54]}  h5 {[%clk 0:02:53]} 6. Bd3 {[%clk 0:02:52]}  Bg4 {[%clk 0:02:52]} 7. Nce2 {[%clk 0:02:49]}  e6 {[%clk 0:02:49]} 8. h3 {[%clk 0:02:48]}  Bxe2 {[%clk 0:02:38]} 9. Qxe2 {[%clk 0:02:49]}  Qh4+ {[%clk 0:02:36]} 10. Qf2 {[%clk 0:02:44]}  Qxf2+ {[%clk 0:02:35]} 11. Kxf2 {[%clk 0:02:45]}  c5 {[%clk 0:02:30]} 12. Nf3 {[%clk 0:02:45]}  cxd4 {[%clk 0:02:25]} 13. Nxd4 {[%clk 0:02:44]}  Nc6 {[%clk 0:02:25]} 14. Be3 {[%clk 0:02:44]}  Bc5 {[%clk 0:02:06]} 15. Nb5 {[%clk 0:02:41]}  Bxe3+ {[%clk 0:02:03]} 16. Kxe3 {[%clk 0:02:42]}  Ke7 {[%clk 0:02:00]} 17. c3 {[%clk 0:02:41]}  g5 {[%clk 0:01:45]} 18. g3 {[%clk 0:02:27]}  h4 {[%clk 0:01:39]} 19. g4 {[%clk 0:02:26]}  gxf4+ {[%clk 0:01:26]} 20. Kxf4 {[%clk 0:02:27]}  Nd7 {[%clk 0:01:14]} 21. Rae1 {[%clk 0:02:25]}  Nc5 {[%clk 0:01:14]} 22. Bb1 {[%clk 0:02:21]}  Rac8 {[%clk 0:01:09]} 23. Rhf1 {[%clk 0:02:12]}  Nd7 {[%clk 0:01:06]} 24. g5 {[%clk 0:02:05]}  Rhg8 {[%clk 0:00:46]} 25. Bd3 {[%clk 0:01:56]}  Ncxe5 {[%clk 0:00:26]} 26. Rxe5 {[%clk 0:01:57]}  Nxe5 {[%clk 0:00:26]} 27. Kxe5 {[%clk 0:01:58]}  Rxg5+ {[%clk 0:00:27]} 28. Kf4 {[%clk 0:01:52]}  Rg3 {[%clk 0:00:24]} 29. Rf3 {[%clk 0:01:52]}  Rg2 {[%clk 0:00:22]} 30. Nxa7 {[%clk 0:01:40]}  Ra8 {[%clk 0:00:21]} 31. Nb5 {[%clk 0:01:40]}  Rxb2 {[%clk 0:00:21]} 32. a3 {[%clk 0:01:38]}  f6 {[%clk 0:00:15]} 33. Kg4 {[%clk 0:01:36]}  Rg2+ {[%clk 0:00:10]} 34. Kf4 {[%clk 0:01:28]}  e5+ {[%clk 0:00:06]} 35. Ke3 {[%clk 0:01:26]}  Rg3 {[%clk 0:00:04]} 36. Be2 {[%clk 0:01:01]}  Ra5 {[%clk 0:00:03]} 37. Rxg3 {[%clk 0:00:58]}  hxg3 {[%clk 0:00:03]} 38. Kf3 {[%clk 0:00:58]}  f5 {[%clk 0:00:03]} 39. Kxg3 {[%clk 0:00:56]}  Kf6 {[%clk 0:00:03]} 40. h4 {[%clk 0:00:54]}  f4+ {[%clk 0:00:02]} 41. Kf3 {[%clk 0:00:50]}  b6 {[%clk 0:00:03]} 42. c4 {[%clk 0:00:45]}  dxc4 {[%clk 0:00:03]} 43. Bxc4 {[%clk 0:00:45]}  Ra4 {[%clk 0:00:03]} 44. Bd3 {[%clk 0:00:38]}  Ra8 {[%clk 0:00:03]} 45. Nd6 {[%clk 0:00:39]}  Rd8 {[%clk 0:00:03]} 46. Ne4+ {[%clk 0:00:33]}  Ke7 {[%clk 0:00:03]} 47. Bb5 {[%clk 0:00:30]}  Ke6 {[%clk 0:00:03]} 48. h5 {[%clk 0:00:24]}  Kf5 {[%clk 0:00:04]} 49. Bf1 {[%clk 0:00:18]}  Ke6 {[%clk 0:00:03]} 50. Bh3+ {[%clk 0:00:18]}  Kf7 {[%clk 0:00:04]} 51. Bf5 {[%clk 0:00:18]}  Rd3+ {[%clk 0:00:03]} 52. Kg4 {[%clk 0:00:19]}  Rxa3 {[%clk 0:00:04]} 53. h6 {[%clk 0:00:18]}  Ra1 {[%clk 0:00:04]} 54. Ng5+ {[%clk 0:00:18]}  Kf6 {[%clk 0:00:05]} 55. Ne4+ {[%clk 0:00:16]}  Ke7 {[%clk 0:00:04]} 56. h7 {[%clk 0:00:15]}  Rh1 {[%clk 0:00:04]} 57. Ng5 {[%clk 0:00:15]}  Kf6 {[%clk 0:00:04]} 58. Nf3 {[%clk 0:00:08]}  Rh6 {[%clk 0:00:03]} 59. Nd2 {[%clk 0:00:07]}  b5 {[%clk 0:00:03]} 60. Ne4+ {[%clk 0:00:07]}  Kg7 {[%clk 0:00:04]} 61. Nc5 {[%clk 0:00:07]}  b4 {[%clk 0:00:04]} 62. Kf3 {[%clk 0:00:07]}  Rh4 {[%clk 0:00:04]} 63. Ke4 {[%clk 0:00:07]}  f3+ {[%clk 0:00:04]} 64. Kxf3 {[%clk 0:00:06]}  Rf4+ {[%clk 0:00:03]} 65. Ke3 {[%clk 0:00:02]}  Rxf5 {[%clk 0:00:04]} 66. Ke4 {[%clk 0:00:03]}  Rh5 {[%clk 0:00:04]} 67. Nd3 {[%clk 0:00:00]}  b3 {[%clk 0:00:04]} 0-1


[Site "https://www.chess.com"]

[Event "Titled Tuesday Blitz July 4 Early 2023"]
[White "Pranav, V"]
[Black "Gorovets, Andrey"]
[WhiteFideId "25060783"]
[BlackFideId "13504037"]
[WhiteElo "2999"]
[BlackElo "2758"]
[Result "1-0"]
[Round "4"]
[TimeControl "180+2"]
[Date "2023.07.04"]
[WhiteClock "0:00:09"]
[BlackClock "0:00:00"]
[Board "26"]

1. e4 {[%clk 0:03:00]}  d5 {[%clk 0:02:58]} 2. exd5 {[%clk 0:03:00]}  Qxd5 {[%clk 0:02:59]} 3. Nc3 {[%clk 0:03:01]}  Qd6 {[%clk 0:02:59]} 4. d4 {[%clk 0:03:00]}  Nf6 {[%clk 0:03:00]} 5. Nf3 {[%clk 0:03:00]}  c6 {[%clk 0:03:00]} 6. g3 {[%clk 0:02:59]}  Bf5 {[%clk 0:03:00]} 7. Bf4 {[%clk 0:02:59]}  Qd8 {[%clk 0:02:57]} 8. Bg2 {[%clk 0:02:58]}  e6 {[%clk 0:02:57]} 9. O-O {[%clk 0:02:58]}  h6 {[%clk 0:02:57]} 10. Re1 {[%clk 0:02:55]}  Be7 {[%clk 0:02:56]} 11. Ne5 {[%clk 0:02:42]}  Nbd7 {[%clk 0:02:55]} 12. Qe2 {[%clk 0:02:41]}  O-O {[%clk 0:02:50]} 13. Rad1 {[%clk 0:02:40]}  Rc8 {[%clk 0:02:37]} 14. a3 {[%clk 0:02:34]}  Re8 {[%clk 0:02:36]} 15. Nc4 {[%clk 0:02:26]}  Nb6 {[%clk 0:02:34]} 16. Ne5 {[%clk 0:02:15]}  Nbd5 {[%clk 0:02:31]} 17. Bc1 {[%clk 0:02:02]}  Bh7 {[%clk 0:02:22]} 18. Na2 {[%clk 0:01:48]}  b5 {[%clk 0:02:20]} 19. b3 {[%clk 0:01:39]}  b4 {[%clk 0:01:36]} 20. axb4 {[%clk 0:01:24]}  Nxb4 {[%clk 0:01:32]} 21. c3 {[%clk 0:01:13]}  Nxa2 {[%clk 0:01:28]} 22. Qxa2 {[%clk 0:01:14]}  Qb6 {[%clk 0:01:25]} 23. b4 {[%clk 0:01:13]}  Nd5 {[%clk 0:01:24]} 24. Bd2 {[%clk 0:01:11]}  Ra8 {[%clk 0:01:19]} 25. Ra1 {[%clk 0:01:10]}  Rec8 {[%clk 0:01:15]} 26. h4 {[%clk 0:01:05]}  a6 {[%clk 0:01:01]} 27. Qc4 {[%clk 0:01:02]}  Qb5 {[%clk 0:00:37]} 28. Qa2 {[%clk 0:01:01]}  Qb6 {[%clk 0:00:35]} 29. Qa4 {[%clk 0:01:01]}  Qb7 {[%clk 0:00:26]} 30. Qd1 {[%clk 0:01:00]}  Bd6 {[%clk 0:00:26]} 31. Nc4 {[%clk 0:00:54]}  Bc7 {[%clk 0:00:25]} 32. Qg4 {[%clk 0:00:52]}  Kh8 {[%clk 0:00:24]} 33. Qf3 {[%clk 0:00:49]}  Kg8 {[%clk 0:00:24]} 34. h5 {[%clk 0:00:47]}  Ra7 {[%clk 0:00:15]} 35. Bf1 {[%clk 0:00:47]}  Rca8 {[%clk 0:00:14]} 36. Na5 {[%clk 0:00:31]}  Bxa5 {[%clk 0:00:14]} 37. Rxa5 {[%clk 0:00:32]}  Nf6 {[%clk 0:00:11]} 38. Bf4 {[%clk 0:00:30]}  Bf5 {[%clk 0:00:08]} 39. Bd6 {[%clk 0:00:23]}  Bg4 {[%clk 0:00:08]} 40. Qf4 {[%clk 0:00:22]}  Qd7 {[%clk 0:00:06]} 41. Be5 {[%clk 0:00:21]}  Bf5 {[%clk 0:00:04]} 42. Bxf6 {[%clk 0:00:21]}  gxf6 {[%clk 0:00:05]} 43. Qxh6 {[%clk 0:00:22]}  Qd8 {[%clk 0:00:02]} 44. Bg2 {[%clk 0:00:18]}  Rc7 {[%clk 0:00:01]} 45. Be4 {[%clk 0:00:18]}  Bxe4 {[%clk 0:00:01]} 46. Rxe4 {[%clk 0:00:19]}  f5 {[%clk 0:00:02]} 47. Re3 {[%clk 0:00:09]}  Rd7 {[%clk 0:00:01]} 48. g4 {[%clk 0:00:09]}  Rd5 {[%clk 0:00:00]} 49. gxf5 {[%clk 0:00:09]} 1-0


[Site "https://www.chess.com"]

[Event "Titled Tuesday Blitz July 4 Early 2023"]
[White "Timerkhanov, Alexander"]
[Black "Zhigalko, Sergei"]
[WhiteFideId "24177938"]
[BlackFideId "13502956"]
[WhiteElo "2679"]
[BlackElo "2898"]
[Result "0-1"]
[Round "4"]
[TimeControl "180+2"]
[Date "2023.07.04"]
[WhiteClock "0:00:02"]
[BlackClock "0:00:06"]
[Board "29"]

1. d4 {[%clk 0:03:00]}  Nf6 {[%clk 0:03:00]} 2. Bg5 {[%clk 0:03:01]}  d5 {[%clk 0:02:59]} 3. Nd2 {[%clk 0:03:01]}  Nbd7 {[%clk 0:02:58]} 4. Ngf3 {[%clk 0:03:00]}  b6 {[%clk 0:02:57]} 5. e3 {[%clk 0:03:00]}  Bb7 {[%clk 0:02:58]} 6. Bd3 {[%clk 0:02:57]}  e6 {[%clk 0:02:54]} 7. Ne5 {[%clk 0:02:56]}  Be7 {[%clk 0:02:53]} 8. f4 {[%clk 0:02:54]}  O-O {[%clk 0:02:50]} 9. Bxf6 {[%clk 0:02:52]}  Nxf6 {[%clk 0:02:44]} 10. Qf3 {[%clk 0:02:52]}  Bd6 {[%clk 0:02:22]} 11. O-O {[%clk 0:02:50]}  c5 {[%clk 0:02:21]} 12. c3 {[%clk 0:02:50]}  a5 {[%clk 0:02:12]} 13. g4 {[%clk 0:02:18]}  Ba6 {[%clk 0:02:01]} 14. Bxa6 {[%clk 0:02:18]}  Rxa6 {[%clk 0:02:02]} 15. a4 {[%clk 0:02:18]}  Bxe5 {[%clk 0:01:56]} 16. fxe5 {[%clk 0:02:17]}  Nd7 {[%clk 0:01:57]} 17. e4 {[%clk 0:02:00]}  Nb8 {[%clk 0:01:26]} 18. exd5 {[%clk 0:01:51]}  Qxd5 {[%clk 0:01:26]} 19. Qxd5 {[%clk 0:01:47]}  exd5 {[%clk 0:01:26]} 20. Nb3 {[%clk 0:01:46]}  Nc6 {[%clk 0:01:17]} 21. dxc5 {[%clk 0:01:43]}  Nxe5 {[%clk 0:01:16]} 22. Rad1 {[%clk 0:01:39]}  Nxg4 {[%clk 0:01:13]} 23. Rfe1 {[%clk 0:01:39]}  bxc5 {[%clk 0:01:10]} 24. Nxc5 {[%clk 0:01:33]}  Rg6 {[%clk 0:01:10]} 25. Rd2 {[%clk 0:01:12]}  Ne5+ {[%clk 0:00:55]} 26. Kf2 {[%clk 0:01:02]}  Rf6+ {[%clk 0:00:55]} 27. Ke2 {[%clk 0:00:42]}  Nf3 {[%clk 0:00:56]} 28. Nd7 {[%clk 0:00:41]}  Re8+ {[%clk 0:00:54]} 29. Kf2 {[%clk 0:00:41]}  Nxe1+ {[%clk 0:00:32]} 30. Nxf6+ {[%clk 0:00:41]}  gxf6 {[%clk 0:00:32]} 31. Rxd5 {[%clk 0:00:41]}  Re5 {[%clk 0:00:06]} 32. Rd1 {[%clk 0:00:37]}  Nc2 {[%clk 0:00:05]} 33. Rd2 {[%clk 0:00:36]}  Ne3 {[%clk 0:00:05]} 34. b4 {[%clk 0:00:34]}  axb4 {[%clk 0:00:03]} 35. cxb4 {[%clk 0:00:34]}  Re4 {[%clk 0:00:03]} 36. Kf3 {[%clk 0:00:25]}  f5 {[%clk 0:00:02]} 37. a5 {[%clk 0:00:23]}  Nc4 {[%clk 0:00:01]} 38. Rd8+ {[%clk 0:00:22]}  Kg7 {[%clk 0:00:02]} 39. Rb8 {[%clk 0:00:20]}  Ne5+ {[%clk 0:00:02]} 40. Kf2 {[%clk 0:00:19]}  Nc6 {[%clk 0:00:03]} 41. Rb6 {[%clk 0:00:16]}  Nxb4 {[%clk 0:00:03]} 42. a6 {[%clk 0:00:16]}  Nd3+ {[%clk 0:00:03]} 43. Kf3 {[%clk 0:00:16]}  Ne5+ {[%clk 0:00:04]} 44. Kg3 {[%clk 0:00:15]}  Rg4+ {[%clk 0:00:04]} 45. Kh3 {[%clk 0:00:15]}  Ra4 {[%clk 0:00:05]} 46. Rb5 {[%clk 0:00:14]}  Ra3+ {[%clk 0:00:05]} 47. Kg2 {[%clk 0:00:09]}  Ng4 {[%clk 0:00:05]} 48. Rb6 {[%clk 0:00:09]}  f4 {[%clk 0:00:05]} 49. h3 {[%clk 0:00:09]}  f3+ {[%clk 0:00:06]} 50. Kg3 {[%clk 0:00:09]}  f2+ {[%clk 0:00:06]} 51. Kg2 {[%clk 0:00:02]}  Ra1 {[%clk 0:00:06]} 0-1


[Site "https://www.chess.com"]